[Event "Charlotte GM-A May 2022"]
[Site "Charlotte"]
[Date "2022.05.04"]
[Round "1.1"]
[White "Song, Micheal"]
[Black "Korley, Kassa"]
[Result "*"]
[ECO "D02"]
[WhiteElo "2408"]
[BlackElo "2413"]
[Annotator "TA"]
[PlyCount "72"]
[EventDate "2022.05.04"]
[EventType "tourn"]
[EventCountry "USA"]
[SourceTitle "playchess.com"]
[Source "ChessBase"]
[SourceQuality "1"]
[TimeControl "5400+30"]

{[%evp 10,72,-1,-11,0,4,35,14,46,50,39,0,7,0,3,0,0,0,0,-22,0,-25,-7,-12,-2,-28,-7,0,0,-16,0,0,0,0,29,-23,-22,-61,-24,-66,-66,-102,-39,-43,-45,-47,0,0,-10,-38,-48,-38,-55,-45,-37,-53,-7,-39,-39,-36,-22,-59,-49,-41,-58]} 1. d4 {[%emt 0:00:05]} d5 {[%emt 0:00:06]} 2. Nf3 {[%emt 0:00:26]} Nf6 {[%emt 0:00:06]} 3. Bf4 {[%emt 0:00:18]} e6 {[%emt 0:00:30]} 4. e3 {[%emt 0:00:17]} Bd6 {[%emt 0:00:03]} 5. Ne5 {[%emt 0:00:15]} O-O {[%emt 0:00:52]} 6. Nd2 {[%emt 0:00:16]} b6 {[%emt 0:00:38] D02: 1 d4 d5 2 Nf3 sidelines, including 2...Nf6 3 g3 and 2...Nf6 3 Bf4.} 7. h4 {[%emt 0:00:12][%cal Bh2h4,Bh4h5,Bh5h6][%mdl 32] is now more promising than 7.Bd3.} Nfd7 {[%emt 0:01:01] [#]} 8. h5 $146 {[%emt 0:05:16]} ({Predecessor:} 8. Bd3 f5 9. Ndf3 Nxe5 10. dxe5 Be7 11. g4 Ba6 12. gxf5 Bxd3 13. Qxd3 Rxf5 14. Nd4 {1-0 (33) Demchenko,A (2641)-Weetik,V (2423) Chess.com INT 2020}) 8... Nxe5 {[%emt 0:01:14] The position is equal.} 9. dxe5 {[%emt 0:00:47]} Be7 {[%emt 0:00:03]} 10. h6 {[%emt 0:00:49] [#] Black must now prevent hxg7.} (10. Qg4 $5 {[%cal Rf4h6]}) 10... g6 {[%emt 0:00:05]} 11. c3 {[%emt 0:06:12]} Ba6 {[%emt 0:00:05]} 12. Bxa6 {[%emt 0:02:47]} Nxa6 {[%emt 0:00:03]} 13. O-O {[%emt 1:19:20]} Nc5 {[%emt 0:00:09]} 14. Qc2 {[%emt 1:17:37]} Qe8 {[%emt 0:12:11]} 15. a4 {[%emt 0:11:01]} a5 {[%emt 0:05:57]} 16. Nf3 {[%emt 0:00:12] Inhibits g5.} c6 {[%emt 0:05:30]} 17. Nd4 {[%emt 0:19:42]} Na6 {[%emt 1:10:27]} 18. e4 {[%emt 0:03:19]} Nc5 {[%emt 0:00:38]} 19. exd5 {[%emt 0:00:41]} exd5 {[%emt 0:00:12]} 20. Rad1 {[%emt 0:12:01]} Ne6 {[%emt 0:06:40]} 21. Be3 {[%emt 0:00:09]} Bc5 {[%emt 0:03:22]} 22. Nxe6 {[%emt 0:04:01]} (22. f4 $142) 22... fxe6 $11 {[%emt 0:00:50]} 23. Qe2 {[%emt 0:07:29]} Qe7 {[%emt 0:00:40]} (23... Rf5 $5 {[%cal Rf5e5]}) 24. Bd4 {[%emt 0:05:06]} Rf5 {[%emt 0:04:40]} 25. g3 {[%emt 0:00:17] Inhibits Qh4.} Qg5 {[%emt 0:01:59]} ({Better is} 25... Qf8 $17 26. Qe3 Rh5) 26. Qe3 $1 $15 {[%emt 0:00:21]} Qxe3 {[%emt 0:02:34]} 27. fxe3 {[%emt 0:00:05]} Raf8 {[%emt 0:00:09]} 28. Rxf5 {[%emt 0:01:52]} gxf5 $11 {[%emt 0:03:03][%mdl 4096] Endgame KRB-KRB} 29. b4 {[%emt 0:02:01]} axb4 {[%emt 0:04:47]} 30. cxb4 {[%emt 0:00:06]} Bxb4 {[%emt 0:00:21] [#] Hoping for ...c5.} 31. Bxb6 {[%emt 0:00:07][%cal Og3g4]} c5 {[%emt 0:00:16]} 32. Kf2 {[%emt 0:02:19]} Ra8 {[%emt 0:01:50]} (32... Kf7 $1 $15) 33. a5 {[%emt 0:00:22][%cal Og3g4]} (33. g4 $5) 33... Kf7 {[%emt 0:00:41]} (33... Bxa5 $2 34. Ra1 $18) 34. g4 {[%emt 0:02:26]} fxg4 {[%emt 0:01:50] And now ...Kg6 would win.} 35. Rg1 {[%emt 0:00:01]} Kg6 {[%emt 0:04:36]} ({Don't play} 35... c4 36. Rxg4 Bf8 37. Rf4+ Ke8 38. Ke2 $11) 36. Rxg4+ {[%emt 0:00:06]} Kxh6 {[%emt 0:01:19] Weighted Error Value: White=0.16 (very precise) /Black=0.15 (very precise)} *

[Event "Charlotte GM-A May 2022"]
[Site "Charlotte"]
[Date "2022.05.05"]
[Round "1.2"]
[White "Stremavicius, Titas"]
[Black "Spicha, K. Alexander"]
[Result "1-0"]
[ECO "D31"]
[WhiteElo "2508"]
[BlackElo "2083"]
[Annotator "TA"]
[PlyCount "69"]
[EventDate "2022.05.04"]
[EventType "tourn"]
[EventCountry "USA"]
[SourceTitle "playchess.com"]
[Source "ChessBase"]
[SourceQuality "1"]
[TimeControl "5400+30"]

{[%evp 16,69,0,0,0,0,0,0,0,-8,0,-6,39,27,34,26,25,29,37,14,36,37,105,72,104,124,162,148,167,164,197,158,294,299,378,372,1683,680,762,683,657,640,701,689,841,802,822,821,833,831,793,710,1286,1286,1345,1335]} 1. d4 {[%emt 0:00:12]} d5 {[%emt 0:00:05]} 2. c4 {[%emt 0:00:18]} e6 {[%emt 0:00:06]} 3. Nc3 {[%emt 0:00:05]} c6 {[%emt 0:00:15]} 4. e4 {[%emt 0:00:06]} dxe4 {[%emt 0:00:06]} 5. Nxe4 {[%emt 0:00:06]} Bb4+ {[%emt 0:00:10]} 6. Bd2 {[%emt 0:00:06]} Qxd4 {[%emt 0:00:08]} 7. Bxb4 {[%emt 0:00:05]} Qxe4+ {[%emt 0:00:08]} 8. Be2 {[%emt 0:00:06]} Na6 {[%emt 0:00:16]} 9. Ba5 {[%emt 0:00:06][%csl Ga5][%cal Rd1d8]} b6 {[%emt 0:00:42] D31: Queen's Gambit Declined: Semi-Slav without ...Nf6 (+ Marshall Gambit and Noteboom) and Exchange Variation lines without ...Nf6.} 10. Qd6 $1 {[%emt 0:00:06][%cal Oe1c1] Strongly threatening 0-0-0!} Bd7 {[%emt 0:00:48]} (10... Ne7 $2 {[#]} 11. O-O-O $1 O-O 12. Qxe7 $18) 11. Bc3 {[%emt 0:00:21]} f6 {[%emt 0:00:34] The position is equal.} 12. Nf3 $40 {[%emt 0:00:25][%cal Of3g5][%mdl 128] And now Ng5! would win. White has some attack.} Nh6 {[%emt 0:01:14]} 13. Nd2 {[%emt 0:13:07]} Qf5 {[%emt 0:29:56] [#]} (13... Qxg2 $2 14. Bh5+ (14. Bf3 Qh3 $15) 14... g6 15. Bf3 $18) 14. Qa3 $146 {[%emt 0:03:09]} ({Predecessor:} 14. O-O-O O-O-O 15. Qa3 Kb7 16. b4 Be8 17. Bf3 Bg6 18. Be4 Qf4 19. Bxc6+ Kxc6 20. Qxa6 {1-0 (41) Aditya,M (2438)-Prilleltensky,M (2131) Paracin 2021}) 14... Nc5 {[%emt 0:10:34]} 15. Bd4 {[%emt 0:01:59]} O-O {[%emt 0:21:07]} 16. Bxc5 {[%emt 0:00:44]} bxc5 {[%emt 0:01:53]} 17. O-O {[%emt 0:09:46]} e5 {[%emt 0:06:10]} (17... Qe5 $5 {[%cal Re5e2]} 18. Rfe1 Qc7 $14) 18. Nb3 {[%emt 0:01:50]} Rae8 {[%emt 0:14:17] White leaves nothing to chance now.} (18... Qg6 $14) 19. Qxa7 {[%emt 0:09:01]} e4 {[%emt 0:00:21]} 20. Rad1 {[%emt 0:01:11]} Bc8 {[%emt 0:00:38]} 21. Qxc5 {[%emt 0:00:25]} ({Resist} 21. Nxc5 $6 Qg5 $14) 21... Re5 {[%emt 0:00:09]} 22. Qxc6 {[%emt 0:08:27]} Qg6 {[%emt 0:00:10]} 23. Kh1 {[%emt 0:14:06]} Rg5 {[%emt 0:04:53]} (23... e3 $16) 24. Nc5 $18 {[%emt 0:01:41]} Bf5 {[%emt 0:00:52]} 25. Ne6 {[%emt 0:02:42]} Rxg2 $2 {[%emt 0:00:32]} (25... Bxe6 26. Qxe6+ Kh8) 26. Nf4 {[%emt 0:00:44] Active counter play!} (26. Nxf8 $142 Rxh2+ 27. Kxh2 Ng4+ 28. Kg3 Ne5+ 29. Nxg6 Nxc6 30. Nf4) 26... Rxh2+ {[%emt 0:00:56]} 27. Kxh2 {[%emt 0:00:02]} Qg5 {[%emt 0:00:36] ...Ng4+ is the strong threat.} 28. Qd5+ {[%emt 0:02:04]} Kh8 {[%emt 0:00:49]} 29. Ng2 {[%emt 0:00:39]} Ng8 {[%emt 0:02:02]} 30. Qd6 {[%emt 0:00:41]} Qh6+ {[%emt 0:00:39]} 31. Kg1 {[%emt 0:00:07]} Bh3 {[%emt 0:00:09]} 32. Qh2 {[%emt 0:01:28]} (32. Qxf8 {is a self mate.} Qg5) 32... f5 {[%emt 0:00:34]} 33. Nf4 {[%emt 0:00:44][%cal Bg2f4,Bf4h3,Bh3f4][%mdl 32]} Rf6 {[%emt 0:01:39]} 34. Nxh3 {[%emt 0:01:14]} f4 {[%emt 0:00:26] [#]} 35. Nxf4 $1 {[%emt 0:01:57] Weighted Error Value: White=0.24 (precise) /Black=0.34} 1-0

[Event "Charlotte GM-A May 2022"]
[Site "Charlotte"]
[Date "2022.05.05"]
[Round "1.3"]
[White "Williams, Justus"]
[Black "Mardov, Dimitar"]
[Result "0-1"]
[ECO "A13"]
[WhiteElo "2417"]
[BlackElo "2402"]
[Annotator "TA"]
[PlyCount "90"]
[EventDate "2022.05.04"]
[EventType "tourn"]
[EventCountry "USA"]
[SourceTitle "playchess.com"]
[Source "ChessBase"]
[SourceQuality "1"]
[TimeControl "5400+30"]

{[%evp 11,90,0,6,9,4,1,30,3,11,11,21,20,0,10,1,10,187,188,191,173,203,192,224,218,223,224,284,205,195,188,254,219,227,218,217,222,241,194,260,232,237,241,280,280,279,289,280,255,259,251,256,224,283,281,407,393,377,377,510,501,454,304,297,270,434,427,371,-92,-88,-753,-753,-753,-753,-752,-752,-752,-747,-1003,-1003,-950,-887]} 1. Nf3 {[%emt 0:03:46]} d5 {[%emt 0:00:06]} 2. e3 {[%emt 0:00:25]} Nf6 {[%emt 0:00:52]} 3. c4 {[%emt 0:00:50]} e6 {[%emt 0:00:18]} 4. Nc3 {[%emt 0:00:44]} Be7 {[%emt 0:01:05]} 5. b3 {[%emt 0:01:09]} O-O {[%emt 0:00:13]} 6. Bb2 {[%emt 0:00:10]} b6 {[%emt 0:01:59]} 7. cxd5 {[%emt 0:00:25] A13: English Opening: 1...e6.} exd5 {[%emt 0:00:47]} 8. d4 {[%emt 0:00:32]} Bb7 {[%emt 0:01:19]} (8... Re8 {feels hotter.} 9. Ne5 Bb4 10. Be2 Ne4) 9. g3 {[%emt 0:02:15] White has an edge.} Re8 {[%emt 0:08:30]} 10. Bg2 {[%emt 0:07:57]} Ba6 {[%emt 0:03:11]} 11. a3 {[%emt 0:01:08] [#]} c6 $146 {[%emt 0:03:39]} ({Predecessor:} 11... Nc6 12. b4 Bb7 13. O-O a6 14. Qb3 Bf8 15. Rac1 Qd6 16. Rc2 a5 17. Ne5 Nxe5 18. dxe5 Qxe5 {1-0 (56) Harutyunian,T (2539)-Rios,C (2520) Barbera del Valles 2019}) 12. Ne5 {[%emt 0:02:37]} Bd6 {[%emt 0:02:17]} 13. f4 {[%emt 0:07:15]} Ne4 $2 {[%emt 0:10:24]} (13... Qc8 $11) 14. Nxe4 $18 {[%emt 0:04:21]} dxe4 {[%emt 0:00:26]} 15. Bxe4 {[%emt 0:00:43]} Qe7 {[%emt 0:19:40]} 16. b4 {[%emt 0:10:00]} (16. Qh5 $6 g6 17. Qf3 f6 $16) 16... Bb5 {[%emt 0:13:57]} 17. Kf2 {[%emt 0:03:27]} (17. Qh5 $6 g6 18. Qd1 a5 $16) 17... Nd7 {[%emt 0:02:59]} 18. Qb3 {[%emt 0:04:50]} Rac8 {[%emt 0:09:06]} 19. Rac1 {[%emt 0:09:27]} Bxe5 {[%emt 0:02:26]} 20. fxe5 {[%emt 0:01:59]} Nb8 {[%emt 0:06:40]} (20... Qe6 $142 21. Qc2 Qh6) 21. Qc2 {[%emt 0:04:06]} h6 {[%emt 0:01:00]} 22. Bf5 {[%emt 0:01:06]} Rcd8 {[%emt 0:00:38]} 23. Rhd1 {[%emt 0:07:04][%cal Bh1d1,Bd1f1,Bf1f4][%mdl 32]} Ba6 {[%emt 0:00:50]} 24. Qb3 {[%emt 0:02:11]} Bb7 {[%emt 0:00:49]} (24... Qg5 $142) 25. Kg1 {[%emt 0:01:21]} Bc8 {[%emt 0:04:04]} 26. Bb1 {[%emt 0:00:30]} Qg5 {[%emt 0:00:56]} 27. Rf1 {[%emt 0:02:31] Prevents Bf5.} Be6 {[%emt 0:00:46]} 28. Qd3 {[%emt 0:00:27]} g6 {[%emt 0:00:13]} 29. Rf4 {[%emt 0:03:09]} Nd7 {[%emt 0:00:27]} 30. Qc3 {[%emt 0:01:29]} (30. Rxc6 {[#]} Nxe5 $1 31. dxe5 Rxd3 32. Bxd3 Qh5 $15) 30... Rc8 {[%emt 0:01:00]} 31. Rcf1 {[%emt 0:01:17]} h5 {[%emt 0:02:25]} 32. Bc2 {[%emt 0:01:46]} Nf8 {[%emt 0:01:02]} (32... Qe7 $142 33. a4 Rf8) 33. Bb3 {[%emt 0:01:17]} Re7 {[%emt 0:00:32]} 34. e4 {[%emt 0:00:29][%cal Be3e4,Be4d5][%mdl 32] [#] Strongly threatening Bc1.} Bxb3 {[%emt 0:00:47]} 35. Qxb3 {[%emt 0:00:04]} Ne6 {[%emt 0:00:03][%cal Bf8e6,Be6g5,Bg5h3][%mdl 32]} 36. Rf6 {[%emt 0:03:59] Black must now prevent d5.} ({Don't blunder} 36. Rxf7 $2 Rxf7 37. Qxe6 Qe3+ 38. Kh1 Qxe4+ 39. Kg1 Qe3+ 40. Kh1 Qe4+ 41. Kg1 Rcc7 $19) 36... Qg4 {[%emt 0:01:07]} 37. d5 {[%emt 0:04:02]} cxd5 {[%emt 0:00:09]} 38. exd5 {[%emt 0:00:16]} Ng5 {[%emt 0:01:03] Hoping for ...Qe4.} 39. e6 $2 {[%emt 0:03:43]} (39. Re1 $18) 39... Qe4 $17 {[%emt 0:00:12][%cal Rg5h3]} 40. h4 $2 {[%emt 0:02:13][%mdl 8192]} ({But not} 40. exf7+ $2 Rxf7 41. g4 Rc2 $19) (40. g4 $17 Rc2 41. R6f2 Qxg4+ 42. Kh1 Rxf2 43. Rxf2) 40... Nh3+ $19 {[%emt 0:00:38] Black is clearly winning.} 41. Kh2 {[%emt 0:00:01]} Rc2+ {[%emt 0:00:06]} 42. Qxc2 {[%emt 0:00:05]} Qxc2+ {[%emt 0:00:08]} 43. Kxh3 {[%emt 0:00:03]} Qxb2 {[%emt 0:01:06]} 44. d6 {[%emt 0:02:46]} Rxe6 {[%emt 0:00:27]} 45. d7 {[%emt 0:00:02]} Qd4 {[%emt 0:00:32] Weighted Error Value: White=0.51/Black=0.26 (precise)} ({Weaker is} 45... Rxf6 46. d8=Q+ Kg7 47. Rxf6 Qxf6 48. Qd3 $17) 0-1

[Event "Charlotte GM-A May 2022"]
[Site "Charlotte"]
[Date "2022.05.05"]
[Round "1.4"]
[White "Sheng, Joshua"]
[Black "Belous, Vladimir"]
[Result "1-0"]
[ECO "B36"]
[WhiteElo "2487"]
[BlackElo "2525"]
[Annotator "TA"]
[PlyCount "69"]
[EventDate "2022.05.04"]
[EventType "tourn"]
[EventCountry "USA"]
[SourceTitle "playchess.com"]
[Source "ChessBase"]
[SourceQuality "1"]
[TimeControl "5400+30"]

{[%evp 20,69,38,48,42,34,21,25,48,43,64,60,81,82,75,77,72,72,58,64,120,118,119,122,188,187,187,183,166,191,180,175,164,167,266,145,132,156,194,167,166,154,258,250,231,120,558,546,540,509,496,480]} 1. e4 {[%emt 0:00:03]} c5 {[%emt 0:02:08]} 2. Nf3 {[%emt 0:00:06]} Nc6 {[%emt 0:00:10]} 3. d4 {[%emt 0:00:04]} cxd4 {[%emt 0:00:04]} 4. Nxd4 {[%emt 0:00:02]} g6 {[%emt 0:00:04]} 5. c4 {[%emt 0:00:15]} Nf6 {[%emt 0:00:04]} 6. Nc3 {[%emt 0:00:03]} d6 {[%emt 0:00:19]} 7. Be2 {[%emt 0:00:08]} Nxd4 {[%emt 0:00:05]} 8. Qxd4 {[%emt 0:00:03]} Bg7 {[%emt 0:00:05]} 9. O-O {[%emt 0:00:05]} O-O {[%emt 0:00:04]} 10. Qd3 {[%emt 0:00:01]} Be6 {[%emt 0:02:13]} 11. Be3 {[%emt 0:01:12]} Nd7 {[%emt 0:03:11] B36: Sicilian: Maroczy Bind: Gurgenidze System.} 12. b3 {[%emt 0:01:43]} Nc5 {[%emt 0:07:05]} 13. Qc2 {[%emt 0:00:09]} Qa5 {[%emt 0:00:59] White has an edge.} 14. Bd2 {[%emt 0:00:41] [#]} f5 $146 {[%emt 0:00:22]} ({Predecessor:} 14... Qd8 15. Rad1 Re8 16. h4 Bd7 17. h5 a5 18. h6 Bxc3 19. Bxc3 Qc7 20. Bd2 Bc6 {1-0 (68) Lemke,B (2220)-Broadway,D (2201) ICCF email 2019}) 15. Rad1 {[%emt 0:06:51]} Qc7 {[%emt 0:02:51]} 16. exf5 {[%emt 0:06:08]} Bxf5 {[%emt 0:09:34]} 17. Qc1 {[%emt 0:00:04]} Qa5 {[%emt 0:05:49]} 18. b4 {[%emt 0:08:44]} Qxb4 {[%emt 0:01:53]} 19. Nd5 $1 {[%emt 0:00:03][%csl LRb4,LRe7][%mdl 64] Discovered Attack, Double Attack} Qa4 {[%emt 0:01:59]} ({Black should try} 19... Qb2 $1 $14) 20. Nxe7+ $16 {[%emt 0:00:06]} Kh8 {[%emt 0:00:06]} 21. Bc3 {[%emt 0:07:27]} Rf7 {[%emt 0:11:44]} (21... Qxa2 $2 22. Rd2 Qa4 23. Bxg7+ Kxg7 24. Qb2+ Kh6 25. Rxd6 $18) (21... Qd7 $16 22. Nxf5 (22. Bxg7+ Kxg7 23. Qc3+ Kf7 $16) 22... Qxf5) 22. Nxf5 $18 {[%emt 0:08:54]} gxf5 {[%emt 0:00:16]} 23. Bh5 $36 {[%emt 0:02:25][%mdl 2048] White has strong initiative. A strong pair of Bishops.} ({Resist} 23. Rxd6 Ne4 24. Bxg7+ Rxg7 $16) 23... Rd7 {[%emt 0:00:39]} 24. Bxg7+ {[%emt 0:02:03]} Rxg7 {[%emt 0:00:06]} 25. Rxd6 {[%emt 0:01:02]} Ne4 {[%emt 0:05:51]} 26. Rd5 {[%emt 0:01:08]} Rag8 {[%emt 0:01:13]} (26... Rf8 {keeps fighting.} 27. Qf4 Qc6) 27. Qa1 {[%emt 0:10:39]} (27. g3 $1 $18) 27... Qxc4 $16 {[%emt 0:08:38]} 28. Rxf5 {[%emt 0:01:33] Black must now prevent Rc1.} Nc3 {[%emt 0:00:26]} 29. Rf3 {[%emt 0:14:31]} Ne2+ {[%emt 0:11:07]} (29... Rxg2+ $2 30. Kh1 Qd4 31. Qxc3 $18) 30. Kh1 {[%emt 0:00:02] And now Rd1 would win.} Nf4 {[%emt 0:00:04] [#]} (30... Qd4 $16) 31. Rc1 $1 $18 {[%emt 0:05:11]} Qd5 {[%emt 0:00:07] [#]} 32. Bg4 {[%emt 0:01:15]} ({Only move:} 32. Rd1 $1 $18 {[%cal Rd1d5]} Qxh5 33. Rxf4) 32... Nxg2 $2 {[%emt 0:00:07][%mdl 8192]} 33. Rf5 {[%emt 0:01:21] White is clearly winning.} ({Less strong is} 33. Kxg2 h5 34. Rd1 Qc6 $14) 33... Qe4 {[%emt 0:06:06]} 34. f3 {[%emt 0:01:04]} Qe2 {[%emt 0:00:02]} 35. Rg5 $1 {[%emt 0:00:11] Weighted Error Value: White=0.12 (very precise) /Black=0.62} 1-0

[Event "Charlotte GM-A May 2022"]
[Site "Charlotte"]
[Date "2022.05.05"]
[Round "1.5"]
[White "Liang, Jason"]
[Black "Ostrovskiy, Aleksandr"]
[Result "1/2-1/2"]
[ECO "B01"]
[WhiteElo "2432"]
[BlackElo "2397"]
[Annotator "TA"]
[PlyCount "111"]
[EventDate "2022.05.04"]
[EventType "tourn"]
[EventCountry "USA"]
[SourceTitle "playchess.com"]
[Source "ChessBase"]
[SourceQuality "1"]
[TimeControl "5400+30"]

{[%evp 19,111,50,52,43,45,35,47,40,47,21,40,23,45,21,18,23,42,8,72,33,44,41,57,37,45,10,12,19,23,21,15,12,73,54,68,77,111,117,96,108,126,118,113,58,50,58,58,42,48,10,64,71,102,64,86,25,54,47,31,47,45,16,125,101,129,131,119,89,206,215,290,187,972,193,193,193,193,193,193,193,232,193,188,32,32,32,32,24,25,0,28,8,8,10]} 1. e4 {[%emt 0:00:02]} d5 {[%emt 0:03:42]} 2. exd5 {[%emt 0:00:08]} Qxd5 {[%emt 0:00:05]} 3. Nc3 {[%emt 0:00:12]} Qa5 {[%emt 0:00:05]} 4. d4 {[%emt 0:00:10]} Nf6 {[%emt 0:00:06]} 5. Nf3 {[%emt 0:01:03]} Bf5 {[%emt 0:00:40]} 6. Ne5 {[%emt 0:04:21]} c6 {[%emt 0:01:20]} 7. Bc4 {[%emt 0:14:22]} e6 {[%emt 0:00:45]} 8. g4 {[%emt 0:01:52]} Bg6 {[%emt 0:00:27]} 9. h4 {[%emt 0:01:03][%cal Bh2h4,Bh4h5][%mdl 32]} Nbd7 {[%emt 1:27:50]} 10. Nxd7 {[%emt 0:06:01]} Nxd7 {[%emt 0:00:30]} 11. h5 $1 {[%emt 0:03:20] B01: Scandinavian Defence.} Be4 {[%emt 0:00:00]} 12. O-O {[%emt 0:01:20]} Bd5 {[%emt 0:00:00]} 13. Nxd5 {[%emt 0:05:04] White is slightly better.} cxd5 {[%emt 0:01:30] [#]} 14. Bb3 $146 {[%emt 0:08:39]} ({Predecessor:} 14. Bd3 Bd6 15. Qf3 O-O-O 16. Be3 g6 17. h6 Rhf8 18. a3 f5 19. c4 e5 20. b4 {1-0 (35) Firouzja,A (2759)-Carlsen,M (2847) chess24.com INT 2021}) 14... Bd6 {[%emt 0:00:30]} 15. Qf3 {[%emt 0:50:23]} O-O {[%emt 0:00:30]} 16. Bg5 {[%emt 0:00:30]} h6 {[%emt 0:00:30]} 17. Bh4 {[%emt 0:00:30]} Rae8 {[%emt 0:00:00]} 18. Rae1 Bb8 {[%emt 0:01:00]} (18... Be7 $11 {remains equal.} 19. Bxe7 Rxe7) 19. Kg2 {[%emt 0:01:00]} b5 {[%emt 0:00:30]} 20. c3 {[%emt 0:00:00] And now Qd3 would win.} Qc7 $1 {[%emt 0:00:30][%csl Gb8][%cal Rc7h2]} 21. Rh1 {[%emt 0:01:00] Prevents Qh2+. Active counter play!} Qf4 {[%emt 0:00:00]} 22. a4 b4 {[%emt 0:01:00]} 23. Qxf4 {[%emt 0:00:00]} Bxf4 {[%emt 0:00:00]} 24. c4 {[%emt 0:00:00]} dxc4 {[%emt 0:00:00]} 25. Bxc4 {[%emt 0:02:00] Bb5 is the strong threat.} Nf6 {[%emt 0:00:00]} (25... Rc8 $11 {keeps the balance.} 26. Ba6 Rc2) 26. Kf3 $1 $16 {[%emt 0:00:00]} Bc7 {[%emt 0:00:00]} 27. g5 {[%emt 0:00:00]} Nh7 {[%emt 0:02:30]} 28. gxh6 {[%emt 0:00:00]} gxh6 {[%emt 0:00:00]} 29. Bb5 {[%emt 0:00:00] This bishop pair is nice.} Rb8 {[%emt 0:00:00]} 30. Be7 {[%emt 0:00:00][%csl LRb4,LRf8]} Rfc8 {[%emt 0:00:00]} 31. Bd7 {[%emt 0:00:00]} (31. Rd1 $16) 31... Rd8 $1 $14 {[%emt 0:00:00]} 32. Bxd8 {[%emt 0:00:00]} Rxd8 {[%emt 0:00:00]} 33. Bc6 {[%emt 0:00:00][%cal Od4d5]} Rxd4 {[%emt 0:00:03]} 34. Rd1 {[%emt 0:00:00] Prevents Rd2.} Rc4 {[%emt 0:02:19]} ({Black should try} 34... Rf4+ $11 35. Kg2 Bb6) 35. Rc1 $36 {[%emt 0:00:00][%mdl 2048] White is really pushing.} Rf4+ {[%emt 0:00:03]} 36. Ke2 {[%emt 0:00:00]} Be5 {[%emt 0:00:48]} 37. Rc2 {[%emt 0:00:00]} (37. Ke3 $16) 37... Nf6 {[%emt 0:01:01]} 38. Bf3 {[%emt 0:00:00]} b3 {[%emt 0:00:43]} 39. Rc8+ {[%emt 0:00:09]} Kh7 {[%emt 0:00:09]} 40. Rg1 {[%emt 0:01:28]} Bxb2 {[%emt 0:00:50]} (40... Ne4 $1 $11) 41. Rc7 $16 {[%emt 0:02:36][%csl LRa7,LRf7]} Nd5 {[%emt 0:00:23]} 42. Bxd5 {[%emt 0:01:53]} exd5 {[%emt 0:00:00]} 43. Rxa7 {[%emt 0:00:27][%mdl 4096] Endgame Black must now prevent a5. KRR-KRB} Bd4 {[%emt 0:00:22] [#]} (43... Be5 $16 {keeps fighting.}) 44. Rb7 $1 $18 {[%emt 0:00:07] Threatens to win with a5.} Rxf2+ {[%emt 0:01:04]} 45. Kd3 {[%emt 0:00:08]} Rf4 {[%emt 0:00:19]} (45... Bc5 46. Rg4 Rf3+ 47. Kd2 d4) 46. Rb1 $2 {[%emt 0:00:14]} (46. Rb4 Be3 47. Rxf4 Bxf4 48. Rf1) 46... Bg7 {[%emt 0:00:47]} 47. a5 {[%emt 0:00:41]} (47. R7xb3 $6 Rd4+ 48. Ke2 Rxa4 $16) 47... Rd4+ {[%emt 0:00:28]} 48. Ke2 {[%emt 0:00:39]} Re4+ {[%emt 0:00:21]} 49. Kf3 {[%emt 0:00:24]} b2 {[%emt 0:00:47]} 50. Rxf7 {[%emt 0:00:44]} Kg8 {[%emt 0:01:03] [#]} 51. Rb7 {[%emt 0:00:54]} (51. Rf4 $1 $18 {[%cal Rf4e4]} Re7 52. Rb4) 51... Ra4 $14 {[%emt 0:00:00]} 52. Rg1 {[%emt 0:00:22][%csl LRb2,LRg7]} Kf8 {[%emt 0:00:00][%cal Oa4a5]} 53. Rb8+ {[%emt 0:01:21]} (53. Rbxg7 b1=Q 54. Rg8+ (54. Rxb1 Kxg7 55. Rb5 Ra3+ 56. Ke2 d4 $16) 54... Kf7 55. R8g7+ (55. Rxb1 Kxg8 56. Rb8+ Kf7 $16) 55... Kf8 56. Rg8+ (56. Rxb1 Kxg7 57. Rb5 d4 $11) 56... Kf7 57. R8g7+ (57. Rxb1 Kxg8 58. Rb5 Ra3+ 59. Kf4 d4 $14) 57... Kf6 58. R7g6+ (58. Rxb1 Kxg7 59. Rb5 Ra3+ 60. Ke2 d4 $11) 58... Qxg6 59. Rxg6+ Ke5 $11) 53... Kf7 {[%emt 0:01:30]} 54. Rb7+ {[%emt 0:00:26]} (54. Rg6 $5 {[%cal Rb8b7]} Rxa5 55. Rb7+ Kf8 56. Rd6 $16) 54... Kf8 {[%emt 0:00:00]} 55. Rbxg7 {[%emt 0:01:43]} b1=Q {[%emt 0:00:00] Prevents Rb7.} 56. Rg8+ {[%emt 0:00:08] Weighted Error Value: White=0.34/Black=0.24 (precise)} 1/2-1/2

[Event "Charlotte GM-A May 2022"]
[Site "Charlotte"]
[Date "2022.05.05"]
[Round "2.1"]
[White "Korley, Kassa"]
[Black "Ostrovskiy, Aleksandr"]
[Result "1/2-1/2"]
[ECO "D78"]
[WhiteElo "2413"]
[BlackElo "2397"]
[Annotator "TA"]
[PlyCount "40"]
[EventDate "2022.05.04"]
[EventType "tourn"]
[EventCountry "USA"]
[SourceTitle "playchess.com"]
[Source "ChessBase"]
[SourceQuality "1"]
[TimeControl "5400+30"]

{[%evp 17,40,20,14,3,5,0,2,0,0,0,0,0,0,0,0,0,0,-8,-3,-5,-8,-1,-1,-9,0]} 1. Nf3 {[%emt 0:00:03]} d5 {[%emt 0:05:11]} 2. g3 {[%emt 0:00:05]} g6 {[%emt 0:02:01]} 3. Bg2 {[%emt 0:00:08]} Bg7 {[%emt 0:00:06]} 4. d4 {[%emt 0:00:02]} c6 {[%emt 0:00:06]} 5. O-O {[%emt 0:00:27]} Nf6 {[%emt 0:00:07]} 6. b3 {[%emt 0:02:08]} O-O {[%emt 0:00:29]} 7. Bb2 {[%emt 0:00:04]} a5 {[%emt 0:04:23]} 8. c4 {[%emt 0:06:38]} Bf5 {[%emt 0:06:49]} 9. Nc3 {[%emt 0:21:36]} Ne4 {[%emt 0:06:32] The position is equal.} 10. Nh4 {[%emt 0:12:10] D78: Fianchetto Grünfeld: 6 0-0 c6.} Nxc3 {[%emt 1:09:46]} 11. Bxc3 {[%emt 0:00:02]} Be6 {[%emt 0:00:00]} 12. Qd3 {[%emt 0:00:12]} Nd7 {[%emt 0:00:00]} 13. Rac1 {[%emt 0:00:07]} a4 {[%emt 0:00:00]} 14. cxd5 {[%emt 0:07:25]} cxd5 {[%emt 0:00:00] [#]} 15. Qb5 $146 {[%emt 0:00:06][%csl LRa4,LRb7,LRd5]} ({Predecessor:} 15. b4 Nf6 16. b5 Qd7 17. Bb4 Rfc8 18. b6 Rc4 19. Bc5 Rc8 20. Qa3 Rxc1 21. Rxc1 {1-0 (30) Mahdian,A (2212)-Abdul Rasheed,M (1180) Waskaduwa 2021}) 15... axb3 {[%emt 0:00:00]} 16. axb3 {[%emt 0:01:28]} Nf6 {[%emt 0:00:00]} 17. e3 {[%emt 0:04:11]} Bd7 {[%emt 0:00:00]} 18. Qxb7 {[%emt 0:05:01]} Rb8 {[%emt 0:00:00]} 19. Qa7 {[%emt 0:00:04]} Rxb3 {[%emt 0:00:00]} 20. Qa2 {[%emt 0:01:52]} Rb5 {[%emt 0:00:00] An uneventful encounter.  Weighted Error Value: White=0.02 (flawless) /Black=0.00 (flawless)} 1/2-1/2